Cogmind - Beta 17.1 @@@ ROGUE MODE // 2026.08.29 @ 16:04:07 Player: UnderDoug Result: Destroyed by S-27 Virus with Autogun Performance ------------- Evolutions (4) 2000 Regions Visited (4) 800 Robots Destroyed (45) 225 Value Destroyed (1767) 1767 Prototype IDs (20) 400 Alien Tech Used (0) 0 Bonus (995) 995 TOTAL SCORE: 6187 Bonus ------- High Alert Combat Kills 195 Registered with UFD 300 Met Optimus in HQ 500 Cogmind --------- Core Integrity 0/850 Matter 4/300 Energy 360/360 System Corruption 14% Temperature Cool (69) Movement Hovering (53) Location -6/Factory Parts ------- > --- POWER (3) -------- Angular Momentum Engine Light Fission Core > --- PROPULSION (5) --- Gravmag System Improved Gravmag System Improved Gravmag System Combat Airjet > --- UTILITY (5) ------ Advanced Weight Redist. System Improved Targeting Computer A0-MCA's Component Scanner > --- WEAPON (2) ------- Heavy Flak Cannon Companion Sword > --- INVENTORY (5) ---- Nuclear Pulse Thruster Nuclear Pulse Thruster Advanced ECM Suite Heavy Flak Cannon Botcube Peak State ------------ > --- POWER ------------ Light Ion Engine Light Fission Core Light Fission Core > --- PROPULSION ------- Flexi-carbon Leg Flexi-carbon Leg Flexi-carbon Leg Cooled Airjet Improved Gravmag System > --- UTILITY ---------- Scrap Suit Improved Melee Analysis Suite A0-MCA's Component Scanner > --- WEAPON ----------- Linear Accelerator Companion Sword > --- INVENTORY -------- VTOL Module VTOL Module Improved Cesium-ion Thruster Plasma Cutter Botcube [Rating: 73] Favorites ----------- Power Light Ion Engine Engine Light Ion Engine Power Core Light Fission Core Propulsion VTOL Module Treads Improved Medium Treads Leg Flexi-carbon Leg Wheel Wheel Hover Unit Improved Hover Unit Flight Unit VTOL Module Utility A0-MCA's Component Scanner Device Scrap Suit Storage Small Storage Unit Processor A0-MCA's Component Scanner Protection Hardened Light Armor Plating Weapon Companion Sword Energy Gun Beam Rifle Energy Cannon Plasma Cannon Ballistic Gun Assault Rifle Ballistic Cannon Linear Accelerator Special Weapon Plasma Cutter Impact Weapon Mace Slashing Weapon Companion Sword Build | -11 -10 -10 -9 -6 ------- Run | Yrd Mat Sub Scr Fac Slots Evolved 8 | . . . . 8 Power 2 | . . . . 2 Propulsion 3 | . . . . 3 Utility 3 | . . . . 3 Weapon . | . . . . . Parts Attached 69 | 6 10 1 12 40 Power 14 | 1 2 . 1 10 Engine 9 | 1 1 . 1 6 Core 5 | . 1 . . 4 Reactor . | . . . . . Propulsion 25 | 2 4 . 3 16 Treads 1 | . . . . 1 Leg 4 | . . . . 4 Wheel 4 | 2 . . . 2 Hover 13 | . 4 . 1 8 Flight 3 | . . . 2 1 Utility 15 | 1 1 1 3 9 Device 7 | . 1 . 1 5 Storage 1 | 1 . . . . Processor 5 | . . . 1 4 Hackware . | . . . . . Protection 2 | . . 1 1 . Artifact . | . . . . . Weapon 15 | 2 3 . 5 5 Energy Gun 4 | . 3 . 1 . Energy Cannon 1 | . . . . 1 Ballistic Gun 2 | 2 . . . . Ballistic Cannon 4 | . . . . 4 Launcher . | . . . . . Special Weapon 1 | . . . 1 . Impact Weapon 2 | . . . 2 . Slashing Weapon 1 | . . . 1 . Piercing Weapon . | . . . . . Special Melee Weapon . | . . . . . Unidentified Prototypes 1 | . . . 1 . Parts Lost 27 | . 3 4 . 20 Power 11 | . 1 1 . 9 Propulsion 9 | . 2 1 . 6 Utility 4 | . . 1 . 3 Weapon 3 | . . 1 . 2 Highest Loss Streak 6 | . 3 4 . 6 To Critical Strikes . | . . . . . Average Backups 3 | 2 3 4 3 2 Power . | . 1 2 1 . Propulsion 1 | . 1 2 . 1 Utility . | . . . 1 . Weapon . | . . . . . Tool/Special . | . . . . . Unused Backups 9 | 2 2 . 3 2 Power 1 | . . . 1 . Propulsion 6 | 1 2 . 1 2 Utility 1 | . . . 1 . Weapon 1 | 1 . . . . Tool/Special . | . . . . . Average Slot Usage (%) 69 | . 69 66 80 60 Engine 9 | . 7 . 13 5 Core 2 | . 6 12 . 2 Wheel 1 | . 2 . . 2 Hover 14 | . 23 26 17 9 Flight 7 | . . . 10 6 Device 6 | . 6 . 7 6 Processor 6 | . . . 1 12 Protection 3 | . . 11 6 . Energy Gun 5 | . 18 14 8 . Ballistic Cannon 1 | . . . . 3 Impact Weapon 3 | . . . 8 . Slashing Weapon 4 | . . . 5 6 Peak Build Rating 73 | 6 10 13 23 73 Average Rating 27 | 4 8 12 15 43 On Entrance 7 | . 6 9 2 21 Avg Prop Armor Cover (%) 10 | . . . . 10 Naked Turns . | . . . . . Heaviest Build 39 | 14 14 26 13 39 Greatest Support 60 | 26 26 14 13 60 Greatest Overweight (x) 3 | . 3 1 2 1 Average Overweight (x) . | . . . . . Largest Inventory Capacity 8 | 8 8 5 5 5 Average Capacity 5 | 6 5 5 5 5 Most Carried 5 | 5 5 5 5 5 Average Carried 3 | 2 3 3 3 3 Final Capacity 8 | 8 5 5 5 5 Final Carried 5 | 3 4 4 5 5 Scrap Suit Usage (%) 38 | . . . 51 38 Parts Cannibalized 6 | . . . 1 5 Class Distribution -------------------- 67% | Mutant 20% | Scrapper 5% | Derelict-Sprinter 3% | Sprinter Dominant Class ---------------- Mutant | -10/Materials Mutant | -10/Subcaves Scrapper | -9/Scraptown Mutant | -6/Factory Resources | -11 -10 -10 -9 -6 ----------- Run | Yrd Mat Sub Scr Fac Matter Collected 1425 | 238 127 . 111 949 Remotely . | . . . . . Salvage Created 1580 | . 215 . . 1365 Parts 91 | . 11 . . 80 Haulers Intercepted . | . . . . . Recyclers Shooed 4 | . 1 . . 3 Parts Field Recycled . | . . . . . Retrieved Matter . | . . . . . Parts Self-Destructed . | . . . . . Prevented . | . . . . . Parts Restored . | . . . . . Kills | -11 -10 -10 -9 -6 ------- Run | Yrd Mat Sub Scr Fac Combat Hostiles Destroyed 27 | . 5 . . 22 Melee 3 | . . . . 3 Guns 5 | . 5 . . . Cannons 17 | . . . . 17 AOE 2 | . . . . 2 Classes Destroyed 10 | . 2 . . 8 Worker 4 | . . . . 4 Builder 4 | . . . . 4 Tunneler 2 | . . . . 2 Recycler 3 | . . . . 3 Watcher 5 | . 1 . . 4 Swarmer 3 | . . . . 3 Grunt 11 | . 5 . . 6 Sentry 1 | . . . . 1 Hunter 8 | . . . . 8 Programmer 4 | . . . . 4 Best Kill Streak 14 | . 3 . . 14 Combat Bots Only 5 | . 3 . . 5 Max Kills in Single Turn 5 | . 1 . . 5 Gunslinging . | . . . . . Exploded 2 | . . . . 2 Melee 1 | . . . . 1 Uniques/NPCs Destroyed . | . . . . . Combat | -11 -10 -10 -9 -6 -------- Run | Yrd Mat Sub Scr Fac Hostile Shots Fired 438 | . 24 21 . 393 Missed 173 | . 7 5 . 161 Hits 265 | . 17 16 . 232 Melee 1 | . . . . 1 Projectile 264 | . 17 16 . 231 Critical Strikes 11 | . 2 . . 9 Damage Taken 4022 | . 329 348 . 3345 Core 968 | . 116 . . 852 Absorbed by Shields . | . . . . . Regen/Repaired (Parts) 55 | . . . 9 46 Core Remaining (%) 76 | 100 . . 53 . Volleys Fired 137 | . 22 5 . 110 Largest 2 | . 2 1 . 1 Hottest 130 | . 130 65 . 80 Shots Fired 145 | . 30 5 . 110 Gun 35 | . 30 5 . . Cannon 105 | . . . . 105 Launcher . | . . . . . Special 5 | . . . . 5 Kinetic 99 | . . . . 99 Thermal 46 | . 30 5 . 11 Explosive . | . . . . . Electromagnetic . | . . . . . Robot Hit Streak 7 | . 7 5 . 7 Robot Miss Streak 10 | . 3 . . 10 Penetration Max . | . . . . . Secondary Targets 2 | . 2 . . . Max Gunslinging Chain 1 | . 1 . . . Shots Hit Robots 128 | . 18 5 . 105 Core Hits 94 | . 9 2 . 83 Critical Kills . | . . . . . Critical Parts Destroyed . | . . . . . Critical Strikes 2 | . . . . 2 Blast 2 | . . . . 2 Melee Attacks 28 | . . . . 28 Impact . | . . . . . Slashing 28 | . . . . 28 Piercing . | . . . . . Sneak Attacks 4 | . . . . 4 Combat Hostiles . | . . . . . Follow-up Attacks . | . . . . . Damage Inflicted 4873 | . 345 83 . 4445 Guns 428 | . 345 83 . . Cannons 2229 | . . . . 2229 Explosions 1113 | . . . . 1113 Melee 1079 | . . . . 1079 Ramming . | . . . . . Kinetic 2111 | . . . . 2111 Thermal 570 | . 345 83 . 142 Explosive 1113 | . . . . 1113 Electromagnetic . | . . . . . Impact . | . . . . . Slashing 1079 | . . . . 1079 Piercing . | . . . . . Highest Corruption 14 | . . . . 14 Average Corruption 7 | . . . . 7 Corruption Purged . | . . . . . Corruption Blocked . | . . . . . Effects 22 | . . . . 22 Message Errors 9 | . . . . 9 Matter Fused 8 | . . . . 8 Heat Flow Errors 2 | . . . . 2 Energy Discharges 1 | . . . . 1 Parts Rejected 1 | . . . . 1 Data Loss (minor) 1 | . . . . 1 Overload Shots . | . . . . . Overflow Damage 280 | . . . . 280 Projectiles 45 | . . . . 45 Explosions 52 | . . . . 52 Melee 183 | . . . . 183 Knockbacks 31 | . . . . 31 Impact . | . . . . . Kinetic 29 | . . . . 29 Secondary 2 | . . . . 2 Self-Inflicted Damage . | . . . . . Shots . | . . . . . Rammed . | . . . . . Targets Rammed . | . . . . . Kicked . | . . . . . Crushed . | . . . . . Highest Temperature 673 | . 673 13 . 189 Average Temperature 130 | . 226 10 . 67 Received Heat Transfer 586 | . 183 84 . 319 Effects 17 | . 17 . . . Shutdowns 3 | . 3 . . . Energy Bleed 2 | . 2 . . . Interference 1 | . 1 . . . Short Circuit 4 | . 4 . . . Damage (minor) 1 | . 1 . . . Damage (major) 4 | . 4 . . . Damage (core) 2 | . 2 . . . Siege Activations . | . . . . . Martial Activations . | . . . . . Shielding Activations . | . . . . . Robots Disrupted . | . . . . . Combat Hostiles . | . . . . . Robots Corrupted . | . . . . . Combat Hostiles . | . . . . . Parts Fried . | . . . . . Impact Corruptions . | . . . . . Robots Melted . | . . . . . Combat Hostiles . | . . . . . Parts Melted . | . . . . . Heat Transferred 1273 | . 814 185 . 274 Parts Sabotaged 3 | . . . . 3 Parts Stolen . | . . . . . Parts Stripped . | . . . . . Power Chain Reactions . | . . . . . Alert | -11 -10 -10 -9 -6 ------- Run | Yrd Mat Sub Scr Fac Maximum Alert Level 2 | . . . . 2 Low Security (%) 40 | 100 100 . . 26 Level 1 1 | . . . . 1 Level 2 58 | . . . . 71 Level 3 . | . . . . . Level 4 . | . . . . . Level 5 . | . . . . . High Security . | . . . . . Max Security . | . . . . . Peak Influence 625 | . 77 . . 625 Initial . | . . . . . Average 300 | . 35 . . 360 Influence Increases 1411 | . 173 . . 1238 Destroy 0b10 Robot/C 540 | . 100 . . 440 Destroy 0b10 Robot/NC 90 | . 5 . . 85 Destroy Leader 150 | . 22 . . 128 Successful Hack 85 | . 16 . . 69 Disable Machine 270 | . 15 . . 255 Destroy Structure 81 | . . . . 81 Partial Spotted 15 | . . . . 15 Lose Combat Pursuer 180 | . 15 . . 165 Influence Decreases 806 | . 126 47 . 633 Entered New Map 23 | . . 23 . . Time Decay 553 | . 96 24 . 433 Lost Part 230 | . 30 . . 200 Squads Dispatched 7 | . 1 . . 6 Investigation 3 | . 1 . . 2 Extermination 3 | . . . . 3 Reinforcement 1 | . . . . 1 Assault . | . . . . . Garrison . | . . . . . Intercept . | . . . . . Searches Triggered . | . . . . . Construction Impeded . | . . . . . Haulers Reinforced . | . . . . . Active Scanning Responses . | . . . . . Cargo Convoy Interrupts 1 | . . . . 1 Stealth | -11 -10 -10 -9 -6 --------- Run | Yrd Mat Sub Scr Fac Distress Signals . | . . . . . Communications Jammed . | . . . . . Distress Signals . | . . . . . Times Spotted 61 | . 8 8 . 45 Peak Tracking Total 13 | . 6 7 . 13 Tactical Retreats 6 | . 1 . . 5 Traps | -11 -10 -10 -9 -6 ------- Run | Yrd Mat Sub Scr Fac Traps Triggered 3 | . 1 . . 2 Indirectly . | . . . . . Trap Hack Attempts . | . . . . . Triggered . | . . . . . Disarmed . | . . . . . Reprogrammed . | . . . . . Reused . | . . . . . Traps Extracted . | . . . . . Installed . | . . . . . Triggered . | . . . . . Machines | -11 -10 -10 -9 -6 ---------- Run | Yrd Mat Sub Scr Fac Machines Disabled 18 | . 1 . . 17 Max in Single Turn 4 | . 1 . . 4 Machines Repaired . | . . . . . Machines Dismantled . | . . . . . Machines Sabotaged . | . . . . . Overloaded Fab Kills . | . . . . . Hacking | -11 -10 -10 -9 -6 --------- Run | Yrd Mat Sub Scr Fac Machines Accessed 23 | . 3 . 8 12 Terminals 10 | . 3 . . 7 Fabricators 1 | . . . . 1 Repair Stations 2 | . . . . 2 Recycling Units . | . . . . . Scanalyzers 2 | . . . . 2 Garrison Access . | . . . . . Total Hacks 85 | . 10 . 41 34 Successful 66 | . 6 . 41 19 Failed 18 | . 4 . . 14 Catastrophic 3 | . 1 . . 2 Database Lockouts 1 | . . . . 1 Manual 2 | . . . 2 . Terminals 34 | . 10 . . 24 Fabricators 2 | . . . . 2 Repair Stations 3 | . . . . 3 Recycling Units . | . . . . . Scanalyzers 5 | . . . . 5 Garrison Access . | . . . . . Terminal Hacks 62 | . 6 . 41 15 Record 48 | . 6 . 39 3 Prototype ID Bank 1 | . . . . 1 Open Door 1 | . . . 1 . Open DSF 1 | . . . . 1 Branch Access Points 1 | . . . . 1 Emergency Access Points 1 | . . . . 1 Alert Level 2 | . . . . 2 Locate Traps 1 | . . . . 1 Transport Status 1 | . . . . 1 Recall Investigation 1 | . . . . 1 Registered Prototypes 1 | . . . . 1 Zone Layout 2 | . . . . 2 Proto ID Catalog 1 | . . . 1 . Fabricator Hacks 2 | . . . . 2 Network Status 1 | . . . . 1 Build 1 | . . . . 1 Repair Station Hacks . | . . . . . Recycling Unit Hacks . | . . . . . Scanalyzer 2 | . . . . 2 Retrieve Study 2 | . . . . 2 Garrison Access Hacks . | . . . . . Unauthorized Hacks . | . . . . . Terminals . | . . . . . Fabricators . | . . . . . Repair Stations . | . . . . . Recycling Units . | . . . . . Scanalyzers . | . . . . . Garrison Access . | . . . . . Data Cores Recovered . | . . . . . Used . | . . . . . Hacking Detections 12 | . 2 . . 10 Full Trace Events 3 | . 1 . . 2 Feedback Events . | . . . . . Feedback Blocked . | . . . . . Robot Schematics Acquired . | . . . . . Robots Built . | . . . . . Authchips . | . . . . . Time . | . . . . . Total Robot Build Rating . | . . . . . Part Schematics Acquired . | . . . . . Parts Built 2 | . . . . 2 Authchips . | . . . . . Time 128 | . . . . 128 Total Part Build Rating 16 | . . . . 16 Part Studies Acquired 1 | . . . . 1 Parts Repaired . | . . . . . Time . | . . . . . Parts Recycled . | . . . . . Recycled Matter . | . . . . . Retrieved Matter . | . . . . . Retrieved Components . | . . . . . Parts Scanalyzed . | . . . . . Part Schematics Acquired . | . . . . . Parts Damaged . | . . . . . Bothacking | -11 -10 -10 -9 -6 ------------ Run | Yrd Mat Sub Scr Fac Used RIF Installer . | . . . . . Robots Hacked . | . . . . . Non-combat . | . . . . . Combat . | . . . . . Robot Hacks Applied . | . . . . . Relay Couplers Released . | . . . . . Fabnet Peak Effective % . | . . . . . Robots Rewired . | . . . . . Allies Hacked . | . . . . . Hacks Repelled . | . . . . . Allies | -11 -10 -10 -9 -6 -------- Run | Yrd Mat Sub Scr Fac Total Allies . | . . . . . Largest Group . | . . . . . Highest-Rated Group . | . . . . . Highest-Rated Ally . | . . . . . Initial UFD Resources 22 | . . . . 22 Total Orders . | . . . . . Ally Attacks . | . . . . . Total Damage . | . . . . . Kills . | . . . . . Allies Corrupted . | . . . . . Allies Melted . | . . . . . Intel | -11 -10 -10 -9 -6 ------- Run | Yrd Mat Sub Scr Fac Active Infowar (turns) 109 | . 72 . . 37 Structural 72 | . 72 . . . ECM 37 | . . . . 37 Robot Analysis Total . | . . . . . Derelict Logs Recovered 1 | . . 1 . . Drone Launches . | . . . . . Drone Recoveries . | . . . . . Exploration | -11 -10 -10 -9 -6 ------------- Run | Yrd Mat Sub Scr Fac Turns Passed 3299 | 75 254 112 1373 1485 Spaces Moved 3579 | 66 198 84 1811 1420 Core 13 | 3 6 . . 4 Treads 73 | . . . . 73 Legs 54 | . . . . 54 Wheels 206 | 63 5 . . 138 Hover 2473 | . 187 84 1359 843 Flight 760 | . . . 452 308 Fastest Speed 29 | 50 56 56 56 29 Average Speed 67 | 88 60 108 70 61 Slowest Speed 200 | 90 200 116 195 190 Overloaded Moves . | . . . . . Propulsion Burnouts . | . . . . . Robots Hopped . | . . . . . Potential Cave-ins . | . . . . . Cave-ins Triggered . | . . . . . Exploration Rate (%) 33 | 4 29 5 94 33 Regions Visited 4 Branch Regions 2 Pre-discovered Areas 1 | . . 1 . . Known Exits Taken . | . . . . . Unknown Exits Taken 4 | 1 1 1 1 . Scrap Searched 9 | . . . 9 . Spaces Dug 1 | . . . . 1 Terrain Destroyed 81 | . . . . 81 Melee 1 | . . . . 1 Projectile 16 | . . . . 16 AOE 64 | . . . . 64 Terrain Rammed . | . . . . . Walls Destroyed . | . . . . . Machines Disabled . | . . . . . Actions | -11 -10 -10 -9 -6 --------- Run | Yrd Mat Sub Scr Fac Total 4279 | 82 304 100 1919 1874 Wait 340 | . 50 8 60 222 Move 3575 | 65 197 83 1810 1420 Hop . | . . . . . Pick Up 61 | 9 11 2 15 24 Fast Attach 22 | 2 2 . 3 15 Attach 54 | 4 7 1 9 33 Detach 15 | . 1 . 4 10 Swap 9 | . 3 . 3 3 Drop 38 | 2 11 1 15 9 Fire 137 | . 22 5 . 110 Melee 28 | . . . . 28 Ram . | . . . . . Kick . | . . . . . Crush . | . . . . . Escape Stasis . | . . . . . Rewire . | . . . . . Trap . | . . . . . Miscellaneous . | . . . . . Route ------- -11/Scrapyard -10/Materials -10/Subcaves -9/Scraptown (discovered 2 exits: *Fac x2) -6/Factory (discovered 2 exits: *Low x2) History --------- Turn | Location | Event 27 | -11/Scrapyard | Discovered new exit (range 16) 76 | -11/Scrapyard | Entered Materials 115 | -10/Materials | Discovered new exit (range 16) 223 | -10/Materials | Lost 3 parts (1p2n) 317 | -10/Materials | Build established: Mutant 330 | -10/Materials | Entered Subcaves 330 | -10/Subcaves | Learned location of Zion (-7) 331 | -10/Subcaves | Approached by a straggling Scientist 383 | -10/Subcaves | Scientist uncovered a shortcut to Scraptown 423 | -10/Subcaves | Ambushed by swarm of Subdwellers 428 | -10/Subcaves | Ambushed by Subdwellers from Twisted Machinery 428 | -10/Subcaves | Ambushed by Subdwellers from Twisted Machinery 442 | -10/Subcaves | Entered Scraptown 473 | -9/Scraptown | Lost 4 parts (1p1n1u1w) 656 | -9/Scraptown | Discovered new exit (range 5) 722 | -9/Scraptown | Visited Red Mages 760 | -9/Scraptown | Visited Cyclists 904 | -9/Scraptown | Visited Awakened 918 | -9/Scraptown | Visited Bundlers 952 | -9/Scraptown | Visited SPCMW 988 | -9/Scraptown | Visited Fellowship of the Rings 1007 | -9/Scraptown | Visited Shadow of the Wyrm 1028 | -9/Scraptown | Visited UFD Registry 1028 | -9/Scraptown | Registered with UFD as "Wrenchthruster" 1050 | -9/Scraptown | Visited Botcube Research 1055 | -9/Scraptown | Found Botcube 1071 | -9/Scraptown | Visited Abandonware Association 1079 | -9/Scraptown | Learned abandonware demo "MELTYB.EXE" 1079 | -9/Scraptown | Learned abandonware demo "REBOOT5.EXE" 1111 | -9/Scraptown | Found Scrap Suit 1149 | -9/Scraptown | Discovered new exit (range 5) 1168 | -9/Scraptown | Received an X-ray algorithm 1170 | -9/Scraptown | Visited A0-MCA Data Center 1175 | -9/Scraptown | Given an A- rating by A0-MCA 1177 | -9/Scraptown | Found A0-MCA's Component Scanner 1187 | -9/Scraptown | Visited Sword Containment 1189 | -9/Scraptown | Ran an X-ray algorithm 1191 | -9/Scraptown | Ran an X-ray algorithm 1254 | -9/Scraptown | Found Prototype Slashing Weapon 1273 | -9/Scraptown | Visited DA-N13 Charitable Foundation 1281 | -9/Scraptown | Found DCF Scrap (29 items) 1292 | -9/Scraptown | Identified Companion Sword 1353 | -9/Scraptown | Visited Science Guys 1402 | -9/Scraptown | Visited Junk Repository 1419 | -9/Scraptown | Build established: Scrapper 1431 | -9/Scraptown | Visited LU-1G1's Boring Crew 1449 | -9/Scraptown | Visited Infowarlord's Domain 1733 | -9/Scraptown | Met Optimus 1733 | -9/Scraptown | Accepted into 0bPrime 1815 | -9/Scraptown | Entered Factory 1815 | -6/Factory | Evolved 8 slots: Power x2, Propulsion x3, Utility x3 1948 | -6/Factory | Fabricated Linear Accelerator (x2) 2080 | -6/Factory | Discovered new exit (range 12) 2279 | -6/Factory | Build established: Mutant 2300 | -6/Factory | Identified exit to Lower Caves 2633 | -6/Factory | Lost 6 parts (3p1n1u1w) 2656 | -6/Factory | Central database locked down 2823 | -6/Factory | Core integrity fell below 50% 2964 | -6/Factory | Spotted B-75 Beast 2966 | -6/Factory | Cargo convoy interrupted 3035 | -6/Factory | System corruption reached 10% 3036 | -6/Factory | Noticed a derelict Sapper rigging charges 3087 | -6/Factory | Core integrity fell below 20% 3300 | -6/Factory | Destroyed by S-27 Virus with Autogun Last Messages --------------- Acquired 22 matter. Acquired 19 matter. Acquired Nuclear Pulse Thruster. [Achievement: 5k Club] Map ----- +----------------------------------------------------+ | ?????????????????????????????????????????????????? | | ?????????????????????????????????????????????????? | | ?????????????????????????????????????????????????? | | ?????????????????????????????????????????????????? | | ?????????????????????????????????????????????????? | | ?????????????????????????????????????????????????? | | ?????????????????????????????????????????????????? | | ?????????????????????????????????????????????????? | | ?????????????????????????????????????????????????? | | ?????????????????????????????????????????????????? | | ???????????????????????###+#?????????????????????? | | ??????????????????????# ????????????????????? | | ??????????????????????# ????????????????????? | | ??????????????????????# ???????????????????? | | ??????????????????????# #??????????????????? | | ??????????????????????+ +??????????????????? | | ??????????????????????# #??????????????????? | | ??????????????????????+ #??????????????????? | | ??????????????????????# #??????????????????? | | ??????????????????????# k#??????????????????? | | ??????????????????????# ####???????????????? | | ??????????????????????# ????????????????? | | ??????????????????????# ????????????????? | | ??????????????????????# s""" """ ???????????????? | | ??????????????????????# """ """ "??????????????? | | ??????????????????????# @""" """ """????????????? | | ??????????????????????# s ???????? | | ??????????????????????# """ """ """????????????? | | ?????????????????????## """ """ "??????????????? | | ?????????????????????# s""" """ """ "??????????? | | ?????????????????????# ??????? | | ?????????????????????# """ """ """ "??????????? | | ?????????????????????# """ """ ""?????????????? | | ?????????????????????# """ """ """ ???????????? | | ?????????????????????# ??????????? | | ?????????????????????# ??????????? | | ?????????????????????# ??????????? | | ?????????????????????# #######???????????? | | ?????????????????????### ^ ###?????????????????? | | ???????????????????????# ^^ ###########?????????? | | ???????????????????????# # #?????????? | | ???????????????????????# # #?????????? | | ??????????############## # #?????????? | | ??????????# # # " " " " #?????????? | | ??????????# # # " " " " #?????????? | | ??????????# """ """ # # " " " " #?????????? | | ??????????? """ """ # # " " " " #?????????? | | ??????????# """ """ !# + " " " " #?????????? | | ??????????# + # " " " " #?????????? | | ??????????# """ # # " " " " #?????????? | +----------------------------------------------------+ Best States ------------- Heat Dissipation 64 Energy Generation 40 Energy Capacity 360 Matter Stores 300 Matter Capacity 300 Sight Range 16 Terrain Scan Density 10 ECM Strength 2 Additional Mass Support 9 Armor Coverage 800 Evasion (%) 64 Targeting Accuracy 6 Melee Accuracy 6 Core Analysis 6 Recoil Reduction 1 Item Schematics ----------------- None Robot Schematics ------------------ None Fabricated ------------ Linear Accelerator | x2 | -6/Factory | Preloaded Repaired ---------- Nothing Studied --------- VTOL Module | -6/Factory | Hacked Alien Tech Used ----------------- None Achievements -------------- 5k Club Bumper Bots Civilization 2243 DATA ERROR: Steam Global Achievement% I Have A Map? Jackpot Just What I Needed Link The Feds Made in Tau Ceti IV Nice Directions, Buddy Oops Overwhelming Risk Taker Serviceable Loadout System Compromised Challenges ------------ None Game ------ Seed ReflectiveFireDoublenader Manual? 0 Play Time 01:29:07 Cumulative 2.3 hours Start 2026.08.29 @ 14:25:20 End 2026.08.29 @ 16:04:07 Sessions 1 Manual Loads 0 Difficulty Rogue Special Mode None Game No. 2 Rogue 2 Adventurer 0 Explorer 0 Win Type - Total 0 Types 0/0/0/0/0/0/0/0/0/0 Lore% 10 Gallery% 5 Achievement% 7 Wizard Run 0 Options --------- Layout 1 ASCII 0 Keyboard 0 Movement Mouse Keybinds 0 Fullscreen 2 Font 24/X11 Map View 50x35 Zoom Use 0% Tactical HUD 0 Map Filters NONE Filters NONE Steam 1 RUN: 89cf67d2-1a19-4e2e-b909-311e21449fec